Cogmind - Beta 13 @@@ ROGUE MODE // 2024.04.06 @ 15:08:12 Player: Razor Feather Result: Destroyed by D-53 Grenadier with Mini Grenade Launcher Performance ------------- Evolutions (1) 500 Regions Visited (3) 600 Robots Destroyed (34) 170 Value Destroyed (802) 802 Prototype IDs (6) 120 Alien Tech Used (0) 0 Bonus (2) 2 TOTAL SCORE: 2194 Bonus ------- High Alert Combat Kills 2 Cogmind --------- Core Integrity 0/400 Matter 298/300 Energy 280/280 System Corruption 1% Temperature Cool (0) Movement Core (500) Ox9 Location -9/Mines Parts ------- > --- POWER (1) -------- Heavy Ion Engine > --- PROPULSION (3) --- (None) > --- UTILITY (3) ------ Large Storage Unit Hacking Suite Hacking Suite > --- WEAPON (2) ------- Mini Grenade Launcher > --- INVENTORY (15) --- Light Ion Engine Aluminum Leg Heat Sink Large Matter Pod (150) Weight Redist. System Advanced Targeting Computer Advanced Targeting Computer Hardened Light Armor Plating Hacking Suite Hacking Suite Medium Laser Beam Rifle Mini Grenade Launcher Mini Grenade Launcher Peak State ------------ > --- POWER ------------ Heavy Ion Engine > --- PROPULSION ------- Aluminum Leg Aluminum Leg Aluminum Leg > --- UTILITY ---------- Large Storage Unit Hacking Suite Hacking Suite > --- WEAPON ----------- Beam Rifle Mini Grenade Launcher > --- INVENTORY -------- Light Ion Engine Compact Wheel Heat Sink Large Matter Pod Weight Redist. System Advanced Targeting Computer Advanced Targeting Computer Hacking Suite Hacking Suite Hacking Suite Small Laser Mini Grenade Launcher Mini Grenade Launcher [Rating: 19] Favorites ----------- Power Ion Engine Engine Ion Engine Propulsion Aluminum Leg Leg Aluminum Leg Wheel Compact Wheel Utility Hacking Suite Device Terrain Scanner Storage Large Storage Unit Hackware Hacking Suite Weapon Small Laser Energy Gun Small Laser Ballistic Gun Light Assault Rifle Launcher Mini Grenade Launcher Build | -11 -10 -9 -9 ------- Run | Yrd Mat Mat Min Slots Evolved 2 | . . 2 . Power . | . . . . Propulsion 1 | . . 1 . Utility 1 | . . 1 . Weapon . | . . . . Parts Attached 27 | 6 12 6 3 Power 4 | 1 2 1 . Engine 4 | 1 2 1 . Core . | . . . . Reactor . | . . . . Propulsion 8 | 2 2 2 2 Treads . | . . . . Leg 7 | 2 2 2 1 Wheel 1 | . . . 1 Hover . | . . . . Flight . | . . . . Utility 6 | 1 4 1 . Device 1 | . 1 . . Storage 3 | 1 2 . . Processor . | . . . . Hackware 2 | . 1 1 . Protection . | . . . . Artifact . | . . . . Weapon 9 | 2 4 2 1 Energy Gun 5 | 1 1 2 1 Energy Cannon . | . . . . Ballistic Gun 3 | 1 2 . . Ballistic Cannon . | . . . . Launcher 1 | . 1 . . Special Weapon . | . . . . Impact Weapon . | . . . . Slashing Weapon . | . . . . Piercing Weapon . | . . . . Special Melee Weapon . | . . . . Unidentified Prototypes 1 | . . 1 . Parts Lost 12 | . 6 1 5 Power 2 | . 1 1 . Propulsion 6 | . 2 . 4 Utility 1 | . 1 . . Weapon 3 | . 2 . 1 Highest Loss Streak 5 | . 4 1 5 To Critical Strikes . | . . . . Average Slot Usage (%) 97 | . 97 98 100 Engine 13 | . 13 11 11 Leg 28 | . 27 31 33 Storage 13 | . 14 11 11 Hackware 14 | . 11 22 22 Energy Gun 11 | . 13 5 11 Ballistic Gun 11 | . 14 5 . Launcher 2 | . . 11 11 Naked Turns . | . . . . Heaviest Build 32 | 11 27 32 32 Greatest Support 30 | 20 20 30 30 Greatest Overweight (x) 9 | . 2 1 9 Average Overweight (x) . | . . . . Largest Inventory Capacity 15 | 8 15 15 15 Average Capacity 12 | 6 12 15 15 Most Carried 15 | 5 15 15 15 Average Carried 11 | 3 10 14 14 Final Capacity 15 | 8 15 15 15 Final Carried 15 | 4 15 14 14 Class Distribution -------------------- 79% | Scavenger-Mutant 18% | Mutant Dominant Class ---------------- Scavenger-Mutant | -10/Materials Scavenger-Mutant | -9/Materials Scavenger-Mutant | -9/Mines Resources | -11 -10 -9 -9 ----------- Run | Yrd Mat Mat Min Matter Collected 867 | 191 464 163 49 Remotely . | . . . . Salvage Created 1048 | . 547 484 17 Parts 70 | . 43 26 1 Haulers Intercepted 3 | . 2 1 . Recyclers Shooed 1 | . . 1 . Parts Field Recycled . | . . . . Retrieved Matter . | . . . . Parts Self-Destructed . | . . . . Prevented . | . . . . Kills | -11 -10 -9 -9 ------- Run | Yrd Mat Mat Min Combat Hostiles Destroyed 22 | . 9 10 3 Guns 11 | . 9 2 . AOE 11 | . . 8 3 Classes Destroyed 8 | . 6 2 . Hauler 3 | . 2 1 . Recycler 3 | . 1 2 . Operator 3 | . 2 1 . Watcher 3 | . 3 . . Swarmer 7 | . 3 1 3 Grunt 11 | . 6 5 . Duelist 1 | . . 1 . Sentry 3 | . . 3 . Best Kill Streak 4 | . 3 4 3 Combat Bots Only 4 | . 3 4 3 Max Kills in Single Turn 2 | . 2 2 2 Gunslinging 1 | . 1 . . Exploded 2 | . . 2 2 Melee . | . . . . Uniques/NPCs Destroyed . | . . . . Combat | -11 -10 -9 -9 -------- Run | Yrd Mat Mat Min Hostile Shots Fired 183 | . 89 82 12 Missed 60 | . 28 28 4 Damage Taken 1833 | . 738 820 275 Core 584 | . 178 358 48 Absorbed by Shields . | . . . . Regen/Repaired (Parts) 44 | . 44 . . Core Remaining (%) 64 | 100 28 . . Volleys Fired 112 | . 76 34 2 Largest 2 | . 2 2 2 Hottest 86 | . 60 86 70 Shots Fired 197 | . 149 44 4 Gun 184 | . 149 33 2 Cannon . | . . . . Launcher 13 | . . 11 2 Special . | . . . . Kinetic 105 | . 97 8 . Thermal 79 | . 52 25 2 Explosive 13 | . . 11 2 Electromagnetic . | . . . . Robot Hit Streak 11 | . 11 7 1 Robot Miss Streak 5 | . 5 3 1 Penetration Max . | . . . . Secondary Targets 2 | . 2 . . Max Gunslinging Chain 1 | . 1 . . Shots Hit Robots 118 | . 86 30 2 Core Hits 60 | . 34 23 3 Critical Kills . | . . . . Critical Parts Destroyed . | . . . . Critical Strikes 3 | . . 3 . Burn 3 | . . 3 . Melee Attacks . | . . . . Impact . | . . . . Slashing . | . . . . Piercing . | . . . . Sneak Attacks . | . . . . Combat Hostiles . | . . . . Follow-up Attacks . | . . . . Damage Inflicted 1952 | . 905 923 124 Guns 1193 | . 905 288 . Cannons . | . . . . Explosions 759 | . . 635 124 Melee . | . . . . Ramming . | . . . . Kinetic 540 | . 498 42 . Thermal 653 | . 407 246 . Explosive 759 | . . 635 124 Electromagnetic . | . . . . Impact . | . . . . Slashing . | . . . . Piercing . | . . . . Highest Corruption 1 | . . 1 1 Average Corruption 1 | . . 1 1 Corruption Purged . | . . . . Corruption Blocked . | . . . . Effects 2 | . . 1 1 Matter Fused 1 | . . . 1 Parts Rejected 1 | . . 1 . Overload Shots . | . . . . Overflow Damage 13 | . . 3 10 Projectiles . | . . . . Explosions 13 | . . 3 10 Melee . | . . . . Knockbacks . | . . . . Impact . | . . . . Kinetic . | . . . . Secondary . | . . . . Self-Inflicted Damage 21 | . . 21 . Shots 1 | . . 1 . Rammed . | . . . . Targets Rammed . | . . . . Kicked . | . . . . Crushed . | . . . . Highest Temperature 103 | . 80 103 6 Average Temperature 27 | . 23 36 3 Received Heat Transfer 543 | . 375 168 . Siege Activations . | . . . . Robots Corrupted . | . . . . Combat Hostiles . | . . . . Parts Fried . | . . . . Impact Corruptions . | . . . . Robots Melted . | . . . . Combat Hostiles . | . . . . Parts Melted 2 | . 1 1 . Heat Transferred 1765 | . 925 840 . Parts Sabotaged . | . . . . Parts Stolen . | . . . . Parts Stripped . | . . . . Power Chain Reactions . | . . . . Alert | -11 -10 -9 -9 ------- Run | Yrd Mat Mat Min Peak Influence 422 | . 225 422 250 Initial 164 | . . . 164 Average 74 | . 37 190 177 Maximum Alert Level 2 | . 1 2 1 Low Security (%) 89 | 100 98 47 82 Level 1 9 | . 1 48 17 Level 2 . | . . 3 . Level 3 . | . . . . Level 4 . | . . . . Level 5 . | . . . . High Security . | . . . . Max Security . | . . . . Squads Dispatched 5 | . 3 2 . Investigation 2 | . 1 1 . Extermination . | . . . . Reinforcement 3 | . 2 1 . Assault . | . . . . Garrison . | . . . . Intercept . | . . . . Searches Triggered . | . . . . Construction Impeded . | . . . . Haulers Reinforced . | . . . . Active Scanning Responses . | . . . . Cargo Convoy Interrupts . | . . . . Stealth | -11 -10 -9 -9 --------- Run | Yrd Mat Mat Min Distress Signals 4 | . 1 3 . Communications Jammed . | . . . . Distress Signals . | . . . . Times Spotted 54 | . 25 18 11 Peak Tracking Total 9 | . 6 9 8 Tactical Retreats 1 | . 1 . . Traps | -11 -10 -9 -9 ------- Run | Yrd Mat Mat Min Traps Triggered 2 | . 1 1 . Indirectly . | . . . . Trap Hack Attempts . | . . . . Triggered . | . . . . Disarmed . | . . . . Reprogrammed . | . . . . Reused . | . . . . Traps Extracted . | . . . . Installed . | . . . . Triggered . | . . . . Machines | -11 -10 -9 -9 ---------- Run | Yrd Mat Mat Min Machines Disabled 3 | . . 3 . Max in Single Turn 2 | . . 2 . Machines Repaired . | . . . . Machines Dismantled . | . . . . Machines Sabotaged . | . . . . Overloaded Fab Kills . | . . . . Hacking | -11 -10 -9 -9 --------- Run | Yrd Mat Mat Min Machines Accessed 10 | . 6 3 1 Terminals 8 | . 4 3 1 Fabricators . | . . . . Repair Stations 1 | . 1 . . Recycling Units 1 | . 1 . . Scanalyzers . | . . . . Garrison Access . | . . . . Total Hacks 23 | . 17 5 1 Successful 13 | . 9 3 1 Failed 10 | . 8 2 . Catastrophic . | . . . . Database Lockouts . | . . . . Manual . | . . . . Terminals 16 | . 10 5 1 Fabricators . | . . . . Repair Stations 4 | . 4 . . Recycling Units 3 | . 3 . . Scanalyzers . | . . . . Garrison Access . | . . . . Terminal Hacks 7 | . 3 3 1 Prototype ID Bank 3 | . 2 1 . Level Access Points 1 | . 1 . . Recall Investigation 1 | . . 1 . Zone Layout 2 | . . 1 1 Fabricator Hacks . | . . . . Repair Station Hacks 4 | . 4 . . Scan Component 2 | . 2 . . Repair 2 | . 2 . . Recycling Unit Hacks 2 | . 2 . . Report Inventory 1 | . 1 . . Retrieve Components 1 | . 1 . . Scanalyzer . | . . . . Garrison Access Hacks . | . . . . Unauthorized Hacks . | . . . . Terminals . | . . . . Fabricators . | . . . . Repair Stations . | . . . . Recycling Units . | . . . . Scanalyzers . | . . . . Garrison Access . | . . . . Data Cores Recovered . | . . . . Used . | . . . . Hacking Detections 6 | . 4 1 1 Full Trace Events 2 | . 1 1 . Feedback Events . | . . . . Feedback Blocked . | . . . . Robot Schematics Acquired . | . . . . Robots Built . | . . . . Authchips . | . . . . Time . | . . . . Total Robot Build Rating . | . . . . Part Schematics Acquired . | . . . . Parts Built . | . . . . Authchips . | . . . . Time . | . . . . Total Part Build Rating . | . . . . Parts Repaired 2 | . 2 . . Time 52 | . 52 . . Parts Recycled . | . . . . Recycled Matter . | . . . . Retrieved Matter . | . . . . Retrieved Components 3 | . 3 . . Parts Scanalyzed . | . . . . Part Schematics Acquired . | . . . . Parts Damaged . | . . . . Bothacking | -11 -10 -9 -9 ------------ Run | Yrd Mat Mat Min Used RIF Installer . | . . . . Robots Hacked . | . . . . Non-combat . | . . . . Combat . | . . . . Robot Hacks Applied . | . . . . Relay Couplers Released . | . . . . Fabnet Peak Effective % . | . . . . Robots Rewired . | . . . . Allies Hacked . | . . . . Hacks Repelled . | . . . . Allies | -11 -10 -9 -9 -------- Run | Yrd Mat Mat Min Total Allies . | . . . . Largest Group . | . . . . Highest-Rated Group . | . . . . Highest-Rated Ally . | . . . . Total Orders . | . . . . Ally Attacks . | . . . . Total Damage . | . . . . Kills . | . . . . Allies Corrupted . | . . . . Allies Melted . | . . . . Intel | -11 -10 -9 -9 ------- Run | Yrd Mat Mat Min Robot Analysis Total . | . . . . Derelict Logs Recovered 2 | . . . 2 Drone Launches . | . . . . Drone Recoveries . | . . . . Exploration | -11 -10 -9 -9 ------------- Run | Yrd Mat Mat Min Turns Passed 2356 | 58 1689 304 305 Spaces Moved 1333 | 51 892 155 235 Core 36 | 25 10 . 1 Treads . | . . . . Legs 1293 | 26 882 155 230 Wheels 4 | . . . 4 Hover . | . . . . Flight . | . . . . Fastest Speed 50 | 50 120 120 115 Average Speed 144 | 85 154 135 125 Slowest Speed 500 | 120 190 190 500 Overloaded Moves . | . . . . Propulsion Burnouts . | . . . . Robots Hopped . | . . . . Cave-ins Triggered . | . . . . Exploration Rate (%) 47 | 3 97 25 66 Regions Visited 3 Branch Regions 1 Pre-discovered Areas 1 | . . . 1 Known Exits Taken 1 | . 1 . . Unknown Exits Taken 2 | 1 . 1 . Scrap Searched 2 | . . . 2 Spaces Dug . | . . . . Terrain Destroyed 95 | . . 72 23 Melee . | . . . . Projectile . | . . . . AOE 95 | . . 72 23 Terrain Rammed . | . . . . Walls Destroyed . | . . . . Machines Disabled . | . . . . Actions | -11 -10 -9 -9 --------- Run | Yrd Mat Mat Min Total 1589 | 64 1070 210 245 Wait 52 | . 52 . . Move 1330 | 50 891 154 235 Hop . | . . . . Pick Up 47 | 8 27 9 3 Fast Attach 5 | 2 3 . . Attach 14 | 4 5 4 1 Detach . | . . . . Swap 8 | . 4 2 2 Drop 21 | . 12 7 2 Fire 112 | . 76 34 2 Melee . | . . . . Ram . | . . . . Kick . | . . . . Crush . | . . . . Escape Stasis . | . . . . Rewire . | . . . . Trap . | . . . . Miscellaneous . | . . . . Route ------- -11/Scrapyard -10/Materials (discovered 4 exits: *Mat x3 / [*Min]) -9/Materials (discovered 2 exits: *Min x2) -9/Mines (discovered 1 exit: [Mat]) History --------- Turn | Location | Event 5 | -11/Scrapyard | Discovered new exit (range 15) 59 | -11/Scrapyard | Entered Materials 327 | -10/Materials | Build established: Mutant 403 | -10/Materials | Discovered new exit (range 12) 489 | -10/Materials | Core integrity fell below 50% 529 | -10/Materials | Lost 4 parts (1p2n1w) 747 | -10/Materials | Discovered new exit (range 5) 796 | -10/Materials | Repaired Heat Sink 818 | -10/Materials | Build established: Scavenger-Mutant 823 | -10/Materials | Repaired Aluminum Leg 888 | -10/Materials | Identified exit to Materials 1748 | -10/Materials | Entered another Materials area 1748 | -9/Materials | Evolved 2 slots: Propulsion x1, Utility x1 1750 | -9/Materials | Discovered new exit (range 15) 2005 | -9/Materials | Discovered new exit (range 12) 2006 | -9/Materials | Core integrity fell below 50% 2039 | -9/Materials | Core integrity fell below 20% 2052 | -9/Materials | Entered Mines 2058 | -9/Mines | Met a Derelict bent on vengeance 2196 | -9/Mines | Learned location of Zion (-6) 2256 | -9/Mines | Learned location of 1 exit from Materials 2291 | -9/Mines | Discovered new exit (range 8) 2336 | -9/Mines | Assembled infested the area 2357 | -9/Mines | Destroyed by D-53 Grenadier with Mini Grenade Launcher Last Messages --------------- 02328_ Acquired 3 matter. 02329_ U-05 Engineer builds a Wall. 02333_ U-05 Engineer lays Concrete. 02334_ U-05 Engineer builds a Wall. 02334_ U-05 Engineer lays Concrete. 02335_ U-05 Engineer builds a Wall. 02336_ ALERT: Infestation in the mines, dispatching Demolisher response squad. 02350_ C-30 ARC bursts open, deploying its payload. 02350_ D-53 Grenadier unfolds itself. 02350_ Aluminum Leg destroyed. 02351_ The unstable cave ceiling collapses. 02352_ Sml. Laser destroyed. 02353_ as-85418 destroyed. 02353_ Aluminum Leg destroyed. 02354_ as-23611 destroyed. 02354_ as-39949 destroyed. 02355_ The unstable cave ceiling collapses. 02355_ Com. Wheel destroyed. 02356_ The unstable cave ceiling collapses. Map ----- +----------------------------------------------------+ | ???????????????????# ### ## ##??### | | ???????????????????# #### | | ?????###??????????## ## ### ## | | ????## ####??????## ### #??## | | ????# ######## #### ##???### ### | | ????# #?#### #??????## ##?? | | ????# ### #???# ?????????## ##??? | | ????# #### #?## #???#???????????####???? | | ?######T###### #??## ???????????????????? | | ?# ## #???# ????????????????? | | ?# ## #####??# #############????????????? | | ?#""" ## ##?# #???????? ####?????????? | | ?#""" #### < #?# #???????? #???????? | | ?#""" ### ### #???????? #???????? | | ?# ## #??????? ##??????? | | ?#### ##### ## #??????? ???????? | | ????# #???## ### ??????? ????????? | | ????# #????## ##?# ??????? ????????? | | ????# #?###?#####??####?????? ??????????? | | ????# ### ######????????????? """??????????? | | ????# ## # #??????#######" """"?????????? | | ????# ############# #% """" #???????? | | ????### = d #???????? | | ??????# d #????????????? | | ??????## ######## ##????????????? | | ???????# #???# @ ##?????????????? | | ???????# ####???# # ##??????????????? | | ???????## #?????# ##???????????????? | | ????????# #????## ##????????????????? | | ????????## #????## ##?????????????????? | | ?????????# ?????# %###??????????????????? | | ????????? #????#### #????????????????????? | | ????????? ???????# #????????????????????? | | ?????????# ???????# #????????????????????? | | ?????????# ???????#a#????????????????????? | | ?????????# ???????? #????????????????????? | | ????????? ?????????? #????????????????????? | | ?????????# ??????????? ????????????????????? | | ??????????# ??????????? ????????????????????? | | ????????????????????????? ????????????????????? | | ?????????????????????????##????????????????????? | | ???????????????????????????????????????????????? | | ???????????????????????????????????????????????? | | ???????????????????????????????????????????????? | | ???????????????????????????????????????????????? | | ???????????????????????????????????????????????? | | ???????????????????????????????????????????????? | | ???????????????????????????????????????????????? | | ???????????????????????????????????????????????? | | ???????????????????????????????????????????????? | +----------------------------------------------------+ Best States ------------- Heat Dissipation 28 Energy Generation 14 Energy Capacity 280 Matter Stores 300 Matter Capacity 300 Sight Range 16 Terrain Scan Range 14 Terrain Scan Density 10 Evasion (%) 55 Offensive Hacking 20 Item Schematics ----------------- None Robot Schematics ------------------ None Fabricated ------------ Nothing Alien Tech Used ----------------- None Achievements -------------- GoHome() Challenges ------------ None Game ------ Seed FireTripodPropulsion Manual? 0 Play Time 00:24:58 Cumulative 12.9 hours Start 2024.04.06 @ 14:42:51 End 2024.04.06 @ 15:08:12 Sessions 1 Manual Loads 0 Difficulty Rogue Special Mode None Game No. 14 Rogue 14 Adventurer 0 Explorer 0 Win Type - Total 0 Types 0/0/0/0/0/0/0/0/0 Lore% 14 Gallery% 19 Achievement% 16 Wizard Run 0 Options --------- Layout 0 ASCII 0 Keyboard 0 Movement Arrows Keybinds 0 Fullscreen 1 Font 18/SmallcapsGlow Map View 76x50 Zoom Use 0% Tactical HUD 1 Map Filters NONE Filters NONE Steam 1 RUN: c8bf0e3a-5553-4208-bc4c-cf619f9d6808